bitfinex/quotes_BTCUSD_20250225
["timestamp","ask_amount","ask_price","bid_price","bid_amount"]
[1740444078146,0.00177332,92106.0,92070.0,0.0016944]
[1740444079794,0.00177332,92106.0,92076.0,0.00300985]
[1740444080219,0.09709754,92106.0,92092.0,0.08679473]
[1740444080367,0.00188687,92105.0,92104.0,0.00300985]
[1740444080575,0.09709754,92106.0,92104.0,0.00300985]
[1740444080777,0.09709754,92106.0,92105.0,0.00300985]
[1740444080982,0.09709754,92106.0,92103.0,0.15]
[1740444081375,0.09709754,92106.0,92103.0,0.00043208]
[1740444081577,0.09709754,92106.0,92105.0,0.00300985]
[1740444081779,0.09709754,92106.0,92103.0,0.00043208]
[1740444081975,0.09709754,92106.0,92105.0,0.02300985]
[1740444082178,0.09709754,92106.0,92105.0,0.17300985]
[1740444082382,0.09709754,92106.0,92105.0,0.17452974]
[1740444082582,0.0483,92150.0,92140.0,0.08679473]
[1740444082842,0.01126988,92171.0,92140.0,0.08679473]
[1740444082843,0.0752,92170.0,92149.0,0.00300985]
[1740444083196,0.0752,92170.0,92137.0,0.15]
[1740444083372,0.0752,92170.0,92130.0,0.08679473]
[1740444083373,0.0752,92170.0,92140.0,0.00300985]
[1740444083574,0.0752,92170.0,92118.0,0.00300985]
[1740444083800,0.0752,92170.0,92121.0,0.08679473]
[1740444084017,0.07532946,92170.0,92131.0,0.08679473]
[1740444084349,0.078,92168.0,92119.0,0.00300985]
[1740444084470,0.1959,92167.0,92099.0,0.02]
[1740444084671,0.2824,92165.0,92095.0,0.00827645]
[1740444084892,0.0827,92162.0,92103.0,0.00300985]
[1740444085101,0.01236295,92169.0,92095.0,0.00827645]
[1740444085102,0.15,92151.0,92095.0,0.00827645]
[1740444085298,0.15,92138.0,92082.0,0.08980458]
[1740444085502,0.15,92138.0,92085.0,0.00300985]
[1740444085704,0.15,92138.0,92096.0,0.00300985]
[1740444085902,0.15,92138.0,92093.0,0.08679473]
[1740444085903,0.1324,92139.0,92105.0,0.00300985]
[1740444086163,0.1324,92139.0,92110.0,0.00300985]
[1740444086296,0.1324,92139.0,92115.0,0.08679473]
[1740444086702,0.13252939,92139.0,92105.0,0.15]
[1740444086929,0.13252939,92139.0,92110.0,0.00300985]
[1740444087127,0.13252939,92139.0,92105.0,0.15]
[1740444087334,0.13252939,92139.0,92126.0,0.00300985]
[1740444087664,0.13252939,92139.0,92114.0,0.10679473]
[1740444087665,0.13252939,92139.0,92111.0,0.00300985]
[1740444087868,0.13252939,92139.0,92114.0,0.08679473]
[1740444088314,0.13252939,92139.0,92106.0,0.15]
[1740444088517,0.13252939,92139.0,92104.0,0.08679473]
[1740444088825,0.01325294,92138.0,92088.0,0.02]
[1740444089020,0.00177247,92138.0,92105.0,0.00300985]
[1740444089253,0.13252939,92139.0,92120.0,0.00300985]
[1740444089671,0.08282939,92139.0,92128.0,0.00300985]
[1740444089850,0.00012939,92139.0,92134.0,0.08679473]
[1740444090066,0.00097719,92139.0,92134.0,0.08679473]
[1740444090271,0.00097719,92139.0,92135.0,0.00300985]
[1740444090458,0.00097719,92139.0,92138.0,0.00300985]
[1740444090668,0.00097719,92139.0,92138.0,0.02452925]
[1740444090866,0.00097719,92139.0,92138.0,0.04572909]
[1740444091291,0.0493,92202.0,92178.0,0.00300985]
[1740444091498,0.00097659,92179.0,92178.0,0.00300985]
[1740444091654,0.00302662,92179.0,92178.0,0.00300985]
[1740444091826,0.00302662,92179.0,92175.0,0.02]
[1740444092029,0.00302662,92179.0,92169.0,0.15]
[1740444092230,0.00097659,92179.0,92174.0,0.00300985]
[1740444092657,0.00097659,92179.0,92165.0,0.15]
[1740444092830,0.00097659,92179.0,92170.0,0.00300985]
[1740444093031,0.00097659,92179.0,92165.0,0.15]
[1740444093474,0.00097659,92179.0,92170.0,0.00300985]
[1740444094032,0.00250559,92178.0,92170.0,0.00300985]
[1740444094234,0.00250559,92178.0,92177.0,0.10679473]
[1740444094439,0.00250559,92178.0,92177.0,0.25980458]
[1740444094620,0.00097659,92179.0,92178.0,0.17300985]
[1740444094776,0.00097659,92179.0,92178.0,0.17452855]
[1740444094977,0.00097659,92179.0,92178.0,0.17452844]
[1740444095175,0.00097659,92179.0,92178.0,0.15]
[1740444095405,0.00097659,92179.0,92175.0,0.00300985]
[1740444095762,0.00348218,92179.0,92178.0,0.02300985]
[1740444096116,0.00097659,92179.0,92178.0,0.00300985]
[1740444096689,0.00353845,92179.0,92178.0,0.00300985]
[1740444097308,0.00353845,92179.0,92178.0,1.03290985]
[1740444097560,0.00353845,92179.0,92178.0,1.01290985]
[1740444097799,0.00097659,92179.0,92178.0,1.01290985]
[1740444098212,0.00097659,92179.0,92178.0,1.0099]
[1740444098329,0.00097659,92179.0,92178.0,0.3224]
[1740444098536,0.09887425,92179.0,92150.0,0.3224]
[1740444098829,0.09887425,92179.0,92130.0,0.00300985]
[1740444098830,0.24887425,92179.0,92130.0,0.00300985]
[1740444099016,0.24887425,92179.0,92125.0,0.8599]
[1740444099017,0.15262009,92178.0,92125.0,0.8599]
[1740444099224,0.0775,92177.0,92129.0,0.00300985]
[1740444099411,0.0775,92177.0,92125.0,0.8599]
[1740444099578,0.19543943,92176.0,92125.0,0.3224]
[1740444099909,0.0775,92168.0,92116.0,0.5375]
[1740444100082,0.1951,92169.0,92116.0,0.5375]
[1740444100083,0.0775,92161.0,92116.0,0.5375]
[1740444100300,0.15,92167.0,92100.0,0.02128]
[1740444100301,0.0775,92159.0,92102.0,0.15]
[1740444100503,0.0775,92159.0,92100.0,0.02128]
[1740444100504,0.0775,92151.0,92100.0,0.02128]
[1740444100668,0.00944902,92150.0,92100.0,0.02128]
[1740444100872,0.00262009,92150.0,92108.0,0.00300985]
[1740444101070,0.00262009,92150.0,92109.0,0.15]
[1740444101266,0.0775,92151.0,92108.0,0.5375]
[1740444101783,0.0941286,92151.0,92108.0,0.00043208]
[1740444102016,0.01338331,92150.0,92108.0,0.00043208]
[1740444102173,0.01338331,92150.0,92119.0,0.08679473]
[1740444102174,0.02247164,92150.0,92119.0,0.08679473]
[1740444102367,0.01338331,92150.0,92132.0,0.00300985]
[1740444102574,0.01338331,92150.0,92136.0,0.00300985]
[1740444102769,0.01338331,92150.0,92130.0,0.07280686]
[1740444103020,0.0112396,92150.0,92130.0,0.07280686]
[1740444103245,0.00214371,92149.0,92127.0,0.001695]
[1740444103450,0.0112396,92150.0,92127.0,0.001695]
[1740444103825,0.0112396,92150.0,92129.0,0.08679473]
[1740444104053,0.0112396,92150.0,92129.0,0.23679473]
[1740444104991,0.0112396,92150.0,92141.0,0.02]
[1740444105163,0.0112396,92150.0,92149.0,0.25679473]
[1740444105368,0.0112396,92150.0,92149.0,0.23679473]
[1740444105574,0.0112396,92150.0,92149.0,1.11669473]
[1740444106794,0.0112396,92150.0,92149.0,1.0099]
[1740444106966,0.0112396,92150.0,92149.0,1.0299]
[1740444107166,0.0112396,92150.0,92149.0,0.8599]
[1740444107585,0.0112396,92150.0,92149.0,1.0299]
[1740444108253,0.0008472,92179.0,92150.0,0.15]
[1740444108403,0.0008472,92179.0,92157.0,0.08679473]
[1740444108604,0.01364934,92178.0,92157.0,0.08679473]
[1740444108964,0.00241004,92178.0,92161.0,0.02]
[1740444109170,0.00241004,92178.0,92171.0,0.02]
[1740444109284,0.00241004,92178.0,92168.0,0.15]
[1740444109285,0.0008472,92179.0,92178.0,0.17]
[1740444109488,0.0008472,92179.0,92178.0,1.03141872]
[1740444109695,0.00097659,92179.0,92178.0,1.0299]
[1740444111103,0.1526781,92180.0,92179.0,0.02]
[1740444111423,0.11999054,92180.0,92179.0,0.01929548]
[1740444111644,0.11999054,92180.0,92179.0,1.03071404]
[1740444111844,0.02395411,92180.0,92179.0,1.02919548]
[1740444112076,0.0016964,92223.0,92219.0,0.01929548]
[1740444112287,0.00097616,92220.0,92219.0,0.01929548]
[1740444112565,0.00350664,92220.0,92218.0,0.15]
[1740444113322,0.00350664,92220.0,92219.0,0.01929548]
[1740444113505,0.00350664,92220.0,92219.0,1.02919548]
[1740444113921,0.00097616,92220.0,92219.0,1.02919548]
[1740444114192,0.00097616,92220.0,92219.0,1.06320967]
[1740444115394,0.00097616,92220.0,92219.0,1.02919548]
[1740444116213,0.00097616,92220.0,92219.0,1.06059319]
[1740444116408,0.00097616,92220.0,92219.0,1.02919548]
[1740444117549,0.00097616,92220.0,92219.0,0.4724]
[1740444117766,0.00097616,92220.0,92219.0,0.3224]
[1740444117896,0.00097616,92220.0,92219.0,0.34169548]
[1740444118304,0.03924436,92255.0,92220.0,0.15]
[1740444118669,0.00012932,92254.0,92228.0,0.01929548]
[1740444118880,0.00012932,92254.0,92222.0,0.15]
[1740444118881,0.00012932,92254.0,92242.0,0.01929548]
[1740444119076,0.00012932,92254.0,92239.0,0.01929548]
[1740444119234,0.00261091,92253.0,92242.0,0.01929548]
[1740444119591,0.00261091,92253.0,92244.0,0.16929548]
[1740444119789,0.00012932,92254.0,92244.0,0.15]
[1740444120194,0.00012932,92254.0,92245.0,0.01929548]
[1740444120398,0.00012932,92254.0,92253.0,0.01929548]
[1740444120604,0.00012932,92254.0,92247.0,0.01929548]
[1740444120799,3.513e-05,92254.0,92244.0,0.15]
[1740444121003,3.513e-05,92254.0,92243.0,0.8599]
[1740444121204,0.07533513,92254.0,92226.0,0.01929548]
[1740444121436,0.04861654,92253.0,92221.0,0.01929548]
[1740444121609,0.19861654,92253.0,92214.0,0.34169548]
[1740444121753,0.04861654,92253.0,92225.0,0.01929548]
[1740444122108,0.04861654,92253.0,92222.0,0.01929548]
[1740444122309,0.04861654,92253.0,92214.0,0.34169548]
[1740444122668,0.046,92253.0,92214.0,0.32471325]
[1740444122913,0.046,92253.0,92215.0,0.15]
[1740444123145,0.046,92253.0,92238.0,0.01929548]
[1740444123312,3.513e-05,92254.0,92252.0,0.01929548]
[1740444123485,0.19886578,92326.0,92255.0,0.02]
[1740444123688,0.10806897,92325.0,92257.0,0.02]
[1740444123891,0.01124843,92302.0,92257.0,0.02]
[1740444124071,0.02,92313.0,92232.0,0.15]
[1740444124435,0.01126319,92301.0,92245.0,0.02]
[1740444124629,0.19886578,92312.0,92257.0,0.02]
[1740444124833,0.01125573,92300.0,92258.0,0.30541777]
[1740444124967,0.17071389,92311.0,92258.0,0.32541777]
[1740444125171,0.17071389,92311.0,92258.0,0.30541777]
[1740444125370,0.01125593,92299.0,92259.0,0.02]
[1740444125616,0.17071389,92311.0,92259.0,0.02]
[1740444125946,0.01125561,92301.0,92266.0,0.02]
[1740444126155,0.09704279,92316.0,92280.0,0.02]
[1740444126322,0.09704279,92316.0,92271.0,0.15]
[1740444126323,0.09704279,92316.0,92286.0,0.02]
[1740444126488,0.09704279,92316.0,92287.0,0.86291777]
[1740444126931,0.09704279,92316.0,92287.0,0.84291777]
[1740444127106,0.17964428,92315.0,92287.0,0.84291777]
[1740444127309,0.02,92312.0,92256.0,0.02]
[1740444127714,0.02,92305.0,92252.0,0.02]
[1740444127920,0.02,92305.0,92249.0,0.02]
[1740444128120,0.02,92288.0,92240.0,0.30541777]
[1740444128342,0.0797,92287.0,92231.0,0.02116]
[1740444128546,0.0495,92280.0,92221.0,0.02]
[1740444128750,0.00807329,92263.0,92221.0,0.02]
[1740444128951,0.0495,92262.0,92218.0,0.02]
[1740444129153,0.0495,92262.0,92223.0,0.02]
[1740444129350,0.0495,92262.0,92227.0,0.02]
[1740444129526,0.00264084,92261.0,92236.0,0.02]
[1740444129742,0.00264084,92261.0,92238.0,0.02]
[1740444130018,0.00264084,92261.0,92231.0,0.02]
[1740444130215,0.00264084,92261.0,92225.0,0.02]
[1740444130439,0.0495,92262.0,92232.0,0.02]
[1740444130676,0.0495,92262.0,92239.0,0.02]
[1740444130868,0.0495,92262.0,92245.0,0.02]
[1740444130869,0.00260865,92261.0,92245.0,0.02]
[1740444131126,0.00260865,92261.0,92252.0,0.02]
[1740444131325,0.00260865,92261.0,92244.0,0.02]
[1740444131532,0.0463,92280.0,92243.0,0.02]
[1740444131705,0.0463,92280.0,92244.0,0.02]
[1740444131905,0.00260865,92279.0,92243.0,0.30541777]
[1740444132070,0.04673096,92280.0,92229.0,0.30541777]
[1740444132271,0.04155967,92279.0,92229.0,0.30541777]
[1740444132474,0.04417761,92279.0,92240.0,0.02]
[1740444132674,0.04417761,92279.0,92229.0,0.30541777]
[1740444132675,0.00261794,92279.0,92243.0,0.02]
[1740444132900,0.00261794,92279.0,92247.0,0.02]
[1740444133099,0.00261794,92279.0,92230.0,0.08671006]
[1740444133100,0.00261794,92279.0,92255.0,0.02]
[1740444133325,0.00261794,92279.0,92260.0,0.02]
[1740444133552,0.00261794,92279.0,92271.0,0.02]
[1740444133736,0.00043096,92280.0,92278.0,0.02]
[1740444134082,0.00043096,92280.0,92279.0,0.32541777]
[1740444134898,0.00043096,92280.0,92279.0,0.30541777]
[1740444135133,0.00043096,92280.0,92279.0,0.32541777]
[1740444140327,0.00043096,92280.0,92279.0,0.02]
[1740444140533,0.00043096,92280.0,92279.0,0.01904407]
[1740444140706,0.0452,92279.0,92263.0,0.01904407]
[1740444140906,0.0452,92279.0,92255.0,0.01904407]
[1740444141133,0.0026925,92278.0,92255.0,0.01808916]
[1740444141341,0.0026925,92278.0,92257.0,0.01808916]
[1740444141660,0.02759235,92278.0,92255.0,0.01713424]
[1740444141820,0.00254245,92277.0,92254.0,0.021]
[1740444142015,0.02,92296.0,92235.0,0.02096]
[1740444142213,0.08671006,92288.0,92235.0,0.02000488]
[1740444142425,0.00815178,92275.0,92235.0,0.02000488]
[1740444142635,0.00251052,92274.0,92235.0,0.02000488]
[1740444142877,0.00251052,92274.0,92237.0,0.01713424]
[1740444143079,0.02,92310.0,92246.0,0.01713424]
[1740444143301,0.00286576,92328.0,92266.0,0.08671006]
[1740444143509,0.000849,92347.0,92282.0,0.01713424]
[1740444143510,0.00249401,92309.0,92282.0,0.01713424]
[1740444143685,0.02,92335.0,92289.0,0.01713424]
[1740444143885,0.000849,92347.0,92297.0,0.01713424]
[1740444144094,0.0024798,92329.0,92299.0,0.01713424]
[1740444144310,0.08671006,92327.0,92285.0,0.5375]
[1740444144441,0.06091899,92326.0,92281.0,0.01713424]
[1740444144645,0.1237,92315.0,92269.0,0.5375]
[1740444144848,0.15,92314.0,92272.0,0.01713424]
[1740444145042,0.0477,92315.0,92283.0,0.01713424]
[1740444145345,0.00252829,92313.0,92291.0,0.01713424]
[1740444145541,0.0477,92315.0,92294.0,0.01713424]
[1740444145751,0.0477,92315.0,92283.0,0.01713424]
[1740444145752,0.00252829,92312.0,92283.0,0.01713424]
[1740444145978,0.0477,92315.0,92290.0,0.01713424]
[1740444146179,0.00252829,92311.0,92290.0,0.01713424]
[1740444146390,0.0477,92315.0,92290.0,0.01713424]
[1740444146561,0.00252829,92310.0,92290.0,0.01713424]
[1740444146762,0.0477,92315.0,92290.0,0.01713424]
[1740444146986,0.00252829,92309.0,92290.0,0.01713424]
[1740444147183,0.0477,92315.0,92290.0,0.01713424]
[1740444147390,0.00252829,92308.0,92297.0,0.01713424]
[1740444147727,0.00252829,92308.0,92276.0,0.08671006]
[1740444147728,0.2471721,92329.0,92302.0,0.01713424]
[1740444148063,0.00252829,92328.0,92303.0,0.30541777]
[1740444148660,0.2471721,92329.0,92303.0,0.30541777]
[1740444148840,0.33388216,92329.0,92303.0,0.30541777]
[1740444149256,0.33388216,92329.0,92251.0,0.0462]
[1740444149257,0.00255223,92328.0,92287.0,0.01713424]
[1740444149546,0.07393916,92327.0,92288.0,0.30541777]
[1740444149935,0.15,92328.0,92288.0,0.30541777]
[1740444150135,0.08671006,92319.0,92288.0,0.30541777]
[1740444150625,0.00255223,92318.0,92288.0,0.30541777]
[1740444151100,0.15,92328.0,92288.0,0.30541777]
[1740444151482,0.00255223,92327.0,92288.0,0.30541777]
[1740444151684,0.08671006,92315.0,92288.0,0.30541777]
[1740444151899,0.15,92321.0,92288.0,0.30541777]
[1740444152273,0.00254704,92320.0,92288.0,0.30541777]
[1740444152668,0.08671006,92319.0,92288.0,0.30541777]
[1740444152895,0.15,92308.0,92288.0,0.30541777]
[1740444153073,0.08671006,92298.0,92272.0,0.0016968]
[1740444153642,0.08671006,92288.0,92272.0,0.0016968]
[1740444154057,0.17,92290.0,92272.0,0.0016968]
[1740444154178,0.2312,92286.0,92272.0,0.0016968]
[1740444154372,0.08671006,92275.0,92272.0,0.0016968]
[1740444154599,0.19768517,92274.0,92228.0,0.84291777]
[1740444154892,0.19768517,92274.0,92236.0,0.01713424]
[1740444155114,0.19768517,92274.0,92215.0,0.5375]
[1740444155115,0.19768517,92274.0,92244.0,0.01713424]
[1740444155315,0.15248517,92274.0,92252.0,0.01713424]
[1740444155538,0.00248517,92274.0,92252.0,0.01713424]
[1740444155737,0.23671006,92291.0,92238.0,0.5375]
[1740444155883,0.24361298,92291.0,92244.0,0.01713424]
[1740444156082,0.02,92285.0,92238.0,0.5375]
[1740444156311,0.15,92276.0,92226.0,0.01713424]
[1740444156517,0.10671006,92277.0,92220.0,0.30541777]
[1740444156518,0.2765,92266.0,92220.0,0.30541777]
[1740444156720,0.03832101,92265.0,92220.0,0.30541777]
[1740444156934,0.08671006,92257.0,92220.0,0.30541777]
[1740444157373,0.02,92262.0,92214.0,0.0016938]
[1740444157583,0.02,92254.0,92214.0,0.0016938]
[1740444157830,0.08671006,92256.0,92214.0,0.00212476]
[1740444157831,0.15,92255.0,92214.0,0.00212476]
[1740444157976,0.04691247,92254.0,92214.0,0.00212476]
[1740444158183,0.00247522,92254.0,92218.0,0.01713424]
[1740444158810,0.09704279,92246.0,92218.0,0.01713424]
[1740444159018,0.09704279,92246.0,92215.0,0.01713424]
[1740444159215,0.09704279,92246.0,92219.0,0.01713424]
[1740444159419,0.00247522,92245.0,92229.0,0.01713424]
[1740444159636,0.00247522,92245.0,92233.0,0.01713424]
[1740444160041,0.00247522,92245.0,92224.0,0.01713424]
[1740444160395,0.00247522,92245.0,92225.0,0.30541777]
[1740444160801,0.09704279,92246.0,92225.0,0.30541777]
[1740444160802,0.09704279,92246.0,92227.0,0.01713424]
[1740444161007,0.09704279,92246.0,92226.0,0.5375]
[1740444161970,0.0112433,92245.0,92226.0,0.5375]
[1740444162261,0.0112433,92245.0,92237.0,0.01713424]
[1740444162479,0.00242737,92244.0,92237.0,0.01713424]
[1740444162620,0.00242737,92244.0,92229.0,0.01713424]
[1740444162821,0.0112433,92245.0,92227.0,0.82593793]
[1740444163567,0.0112433,92245.0,92224.0,0.0016986]
[1740444163800,0.00242988,92244.0,92224.0,0.0016986]
[1740444164054,0.02701068,92243.0,92224.0,0.0016986]
[1740444164279,0.0468,92242.0,92224.0,0.0016986]
[1740444164510,0.04922988,92242.0,92224.0,0.0016986]
[1740444164705,0.19922988,92242.0,92224.0,0.0016986]
[1740444164939,0.15,92240.0,92224.0,0.0016986]
[1740444165150,0.17,92236.0,92224.0,0.0016986]
[1740444165411,0.15,92236.0,92224.0,0.0016986]
[1740444165612,0.00238368,92235.0,92224.0,0.0016986]
[1740444166392,0.08909374,92235.0,92224.0,0.0016986]
[1740444166592,0.19579595,92234.0,92224.0,0.0016986]
[1740444167004,0.15,92234.0,92224.0,0.0016986]
[1740444167189,0.00238368,92233.0,92224.0,0.0016986]
[1740444167968,0.02,92236.0,92224.0,0.0016986]
[1740444168175,0.00237667,92232.0,92224.0,0.0016986]
[1740444168491,0.21886578,92236.0,92224.0,0.0016986]
[1740444168492,0.00237667,92231.0,92224.0,0.0016986]
[1740444168693,0.34886578,92244.0,92224.0,0.0016986]
[1740444168929,0.00237667,92230.0,92224.0,0.0016986]
[1740444169132,0.15,92244.0,92224.0,0.0016986]
[1740444169336,0.00237667,92229.0,92224.0,0.0016986]
[1740444169540,0.0112433,92245.0,92224.0,0.0016986]
[1740444169739,0.00237871,92228.0,92224.0,0.0016986]
[1740444169913,0.09704279,92235.0,92224.0,0.0016986]
[1740444170149,0.00237871,92227.0,92224.0,0.0016986]
[1740444170351,0.09704279,92235.0,92224.0,0.0016986]
[1740444170517,0.00238804,92226.0,92224.0,0.0016986]
[1740444170719,0.09704279,92235.0,92224.0,0.0016986]
[1740444170933,0.00238804,92225.0,92224.0,0.01883284]
[1740444171139,0.09704279,92235.0,92224.0,0.01883284]
[1740444171562,0.00226496,92234.0,92224.0,0.0016986]
[1740444172994,0.00226496,92234.0,92212.0,0.00397574]
[1740444173220,0.00226496,92234.0,92212.0,0.00410506]
[1740444173592,0.00226496,92234.0,92212.0,0.00012932]
[1740444173831,0.0112433,92245.0,92212.0,0.00012932]
[1740444174016,0.00226496,92233.0,92212.0,0.00012932]
[1740444174264,0.00822358,92226.0,92212.0,0.00012932]
[1740444174397,0.0478,92225.0,92212.0,0.00012932]
[1740444174822,0.00226496,92224.0,92212.0,0.00012932]
[1740444175749,0.23671006,92217.0,92212.0,0.00012932]
[1740444175975,0.04067101,92216.0,92212.0,0.00012932]
[1740444176154,0.00226496,92216.0,92212.0,0.00012932]
[1740444176335,0.02,92213.0,92212.0,0.00012932]
[1740444176529,0.02,92213.0,92212.0,1e-08]
[1740444176736,0.02,92210.0,92186.0,0.0016944]
[1740444176957,0.08671006,92207.0,92186.0,0.00182376]
[1740444177158,0.1758975,92206.0,92186.0,0.00182376]
[1740444177360,0.00226496,92206.0,92186.0,0.00182376]
[1740444178056,0.00226496,92206.0,92187.0,0.00397574]
[1740444178259,0.00226496,92206.0,92186.0,0.00182376]
[1740444178854,0.00226496,92206.0,92186.0,0.0057995]
[1740444179113,0.00226496,92206.0,92205.0,0.00397574]
[1740444179223,0.01124783,92209.0,92208.0,0.00397574]
[1740444179559,0.01373234,92209.0,92208.0,0.00397574]
[1740444179760,0.01373234,92209.0,92205.0,0.00397574]
[1740444180382,0.01373234,92209.0,92197.0,0.00397574]
[1740444180604,0.01373234,92209.0,92189.0,0.82991367]
[1740444181017,0.00811834,92207.0,92174.0,0.00397574]
[1740444181248,0.00811834,92207.0,92169.0,0.30939351]
[1740444181402,0.00248451,92206.0,92174.0,0.00397574]
[1740444181606,0.00248451,92206.0,92169.0,0.30541777]
[1740444181783,0.23671006,92205.0,92159.0,0.00397574]
[1740444181984,0.08671006,92194.0,92157.0,0.00397574]
[1740444182207,0.0796,92188.0,92179.0,0.00148985]
[1740444182412,0.08671006,92180.0,92139.0,0.00397574]
[1740444182622,0.09480389,92180.0,92135.0,0.00397574]
[1740444182929,0.0465,92178.0,92145.0,0.00212648]
[1740444183247,0.02937884,92177.0,92145.0,0.00212648]
[1740444183538,0.00248451,92176.0,92145.0,0.00212648]
[1740444183854,0.08671006,92167.0,92145.0,0.00212648]
[1740444184069,0.34722034,92153.0,92145.0,0.00212648]
[1740444184427,0.0081123,92148.0,92145.0,0.00212648]
[1740444184632,0.03553326,92147.0,92145.0,0.00212648]
[1740444184858,0.03786248,92147.0,92145.0,0.00212648]
[1740444185066,0.0463,92146.0,92145.0,0.00212648]
[1740444185198,0.050662,92146.0,92145.0,0.00212648]
[1740444185595,0.05299122,92146.0,92145.0,0.00212648]
[1740444185916,0.25698879,92146.0,92145.0,0.00212648]
[1740444186145,0.15,92145.0,92127.0,0.001695]
[1740444186314,0.15,92142.0,92130.0,0.00182459]
[1740444186714,0.00232922,92141.0,92130.0,0.00182459]
[1740444187300,0.004362,92158.0,92134.0,0.00397574]
[1740444187533,0.02101227,92159.0,92130.0,0.00182459]
[1740444187732,0.09704279,92151.0,92130.0,0.00182459]
[1740444187950,0.1599372,92150.0,92130.0,0.00182459]
[1740444188153,0.16226642,92150.0,92130.0,0.00182459]
[1740444188355,0.15232922,92150.0,92130.0,0.00182459]
[1740444189554,0.00817523,92136.0,92130.0,0.00182459]
[1740444189758,0.0478,92135.0,92130.0,0.00182459]
[1740444190181,0.15,92133.0,92093.0,0.0016962]
[1740444190382,0.15,92131.0,92121.0,0.00182579]
[1740444190645,0.08750938,92130.0,92121.0,0.00182579]
[1740444190852,0.15,92129.0,92121.0,0.00182579]
[1740444191125,0.00278031,92128.0,92121.0,0.00182579]
[1740444191356,0.15,92123.0,92093.0,0.0016962]
[1740444191640,0.08756962,92122.0,92093.0,0.00182574]
[1740444191942,0.10106996,92122.0,92093.0,0.00182574]
[1740444192116,0.00161304,92121.0,92093.0,0.00182574]
[1740444192319,0.01123677,92122.0,92093.0,0.00182574]
[1740444192530,0.00226357,92120.0,92093.0,0.00580148]
[1740444192693,0.01123677,92122.0,92093.0,0.00182574]
[1740444192894,0.00226357,92119.0,92093.0,0.00182574]
[1740444193137,0.05408182,92118.0,92093.0,0.00182574]
[1740444193337,0.01123677,92122.0,92093.0,0.00580148]
[1740444193552,0.00218032,92117.0,92093.0,0.00580148]
[1740444193790,0.01123677,92122.0,92093.0,0.00182574]
[1740444194235,0.00217808,92121.0,92093.0,0.00182574]
[1740444194444,0.00217808,92121.0,92093.0,0.00580148]
[1740444194644,0.03622806,92120.0,92093.0,0.00182574]
[1740444194869,0.01123677,92122.0,92095.0,0.00397574]
[1740444194870,0.00217793,92119.0,92095.0,0.00397574]
[1740444195076,0.00217793,92119.0,92107.0,0.00397574]
[1740444195276,0.01123677,92122.0,92118.0,0.00397574]
[1740444195486,0.01123677,92122.0,92121.0,0.02397574]
[1740444195696,0.09704279,92143.0,92130.0,0.00397574]
[1740444195896,0.09704279,92143.0,92118.0,0.00397574]
[1740444195897,0.01124418,92136.0,92118.0,0.00397574]
[1740444196122,0.01124418,92136.0,92114.0,0.00397574]
[1740444196320,0.01124418,92136.0,92109.0,0.82593793]
[1740444196521,0.01124418,92136.0,92104.0,0.00397574]
[1740444196674,0.00218326,92135.0,92097.0,0.30541777]
[1740444196874,0.05904418,92136.0,92097.0,0.30952305]
[1740444197161,0.00218326,92134.0,92097.0,0.00012954]
[1740444197275,0.19637412,92135.0,92097.0,0.00012954]
[1740444197491,0.00218326,92133.0,92097.0,0.00012954]
[1740444197698,0.19637412,92135.0,92100.0,0.00397574]
[1740444197897,0.00218326,92132.0,92113.0,0.00397574]
[1740444198147,0.01124418,92136.0,92105.0,0.00397574]
[1740444198348,0.00218326,92131.0,92100.0,0.00397574]
[1740444198546,0.00218326,92131.0,92097.0,0.00012954]
[1740444198547,0.08684325,92121.0,92097.0,0.00012954]
[1740444198757,0.00868433,92120.0,92097.0,0.00012954]
[1740444198975,0.00217777,92120.0,92097.0,0.00012954]
[1740444199410,0.15,92130.0,92097.0,0.00012954]
[1740444199596,0.08684325,92131.0,92097.0,0.00012954]
[1740444199597,0.00217731,92119.0,92097.0,0.00012954]
[1740444199783,0.0477,92120.0,92097.0,0.00012954]
[1740444200297,0.00217731,92119.0,92097.0,0.00012954]
[1740444200841,0.23902056,92119.0,92097.0,0.00012954]
[1740444201042,0.17867206,92118.0,92097.0,0.00012954]
[1740444201248,0.0021691,92117.0,92097.0,0.00012954]
[1740444201513,0.00229398,92116.0,92097.0,0.00012954]
[1740444201706,0.00216586,92116.0,92097.0,0.00012954]
[1740444202296,0.00813396,92104.0,92097.0,0.00012954]
[1740444202864,0.00215877,92103.0,92097.0,0.00012954]
[1740444203074,0.00445275,92103.0,92072.0,0.00397574]
[1740444203199,0.00445275,92103.0,92081.0,0.00397574]
[1740444203200,0.00228786,92103.0,92081.0,0.00397574]
[1740444203396,0.00012909,92103.0,92077.0,0.02]
[1740444203774,0.00012909,92103.0,92070.0,0.0016944]
[1740444203981,0.00229398,92102.0,92070.0,0.0016944]
[1740444204112,0.00819565,92075.0,92070.0,0.0016944]
[1740444204606,0.00215932,92074.0,92070.0,0.0016944]
[1740444204977,0.02176971,92074.0,92070.0,0.0016944]
[1740444205207,0.00440113,92073.0,92070.0,0.0016944]
[1740444205321,0.00215932,92074.0,92070.0,0.0016944]
[1740444205526,0.00214353,92072.0,92070.0,0.0021263]
[1740444205730,0.19886578,92101.0,92070.0,0.0021263]
[1740444205935,0.0456,92104.0,92070.0,0.0021263]
[1740444205936,0.00205505,92071.0,92070.0,0.0021263]
[1740444206134,0.00819484,92082.0,92070.0,0.0021263]
[1740444206333,0.00205505,92071.0,92070.0,0.0021263]
[1740444206555,0.00819484,92082.0,92070.0,0.0021263]
[1740444206763,0.00205876,92071.0,92070.0,0.0021263]
[1740444206961,0.15,92081.0,92070.0,0.0021263]
[1740444207168,0.00205876,92071.0,92070.0,0.0021263]
[1740444207368,0.02552376,92080.0,92070.0,0.0021263]
[1740444207588,0.00205876,92071.0,92070.0,0.0021263]
[1740444207797,0.15,92081.0,92070.0,0.0021263]
[1740444208003,0.00205867,92071.0,92070.0,0.0021263]
[1740444208200,0.15,92081.0,92070.0,0.0021263]
[1740444208405,0.00205867,92071.0,92070.0,0.0021263]
[1740444208716,0.00206167,92071.0,92070.0,0.0021263]
[1740444208908,0.15,92081.0,92070.0,0.0021263]
[1740444209119,0.00206167,92071.0,92070.0,0.0021263]
[1740444209317,0.02552376,92080.0,92070.0,0.0021263]
[1740444209689,0.00206167,92071.0,92070.0,0.0021263]
[1740444209890,0.02552376,92080.0,92070.0,0.0021263]
[1740444210097,0.00206167,92079.0,92070.0,0.0021263]
[1740444210339,0.02828231,92078.0,92070.0,0.0021263]
[1740444210553,0.00206167,92079.0,92070.0,0.0021263]